Cogmind - Beta 16.1 @@@ ROGUE MODE // 2026.02.22 @ 00:11:49 Player: TheSkyeDoctor Result: Destroyed by 7S-CLJ(R) with Subdweller Machine Gun Performance ------------- Evolutions (0) 0 Regions Visited (2) 400 Robots Destroyed (16) 80 Value Destroyed (458) 458 Prototype IDs (0) 0 Alien Tech Used (0) 0 Bonus (0) 0 TOTAL SCORE: 938 Bonus ------- None Cogmind --------- Core Integrity 0/250 Matter 263/300 Energy 200/200 System Corruption 1% Temperature Cool (0) Movement Rolling (110) Location -10/Subcaves Parts ------- > --- POWER (1) -------- Subdweller Power Source > --- PROPULSION (2) --- Subdweller Monowheel Subdweller Monowheel > --- UTILITY (2) ------ Large Storage Unit > --- WEAPON (2) ------- Beam Cannon > --- INVENTORY (15) --- Ion Engine Wheel Humpback Machine Analyzer Cobbler Unit Peak State ------------ > --- POWER ------------ Subdweller Power Source > --- PROPULSION ------- Subdweller Monowheel Subdweller Monowheel > --- UTILITY ---------- Large Storage Unit Seismic Detector > --- WEAPON ----------- Beam Cannon Subdweller Machine Gun > --- INVENTORY -------- Wheel Subdweller Monowheel Humpback Cobbler Unit Beam Cannon Subdweller Machine Gun [Rating: 12] Favorites ----------- Power Light Ion Engine Engine Light Ion Engine Propulsion Subdweller Monowheel Treads Light Treads Wheel Subdweller Monowheel Utility Large Storage Unit Device Seismic Detector Storage Large Storage Unit Weapon Beam Cannon Energy Gun Medium Laser Energy Cannon Beam Cannon Ballistic Gun Subdweller Machine Gun Build | -11 -10 -10 ------- Run | Yrd Mat Sub Slots Evolved . | . . . Power . | . . . Propulsion . | . . . Utility . | . . . Weapon . | . . . Parts Attached 18 | 7 2 9 Power 3 | 1 . 2 Engine 3 | 1 . 2 Core . | . . . Reactor . | . . . Propulsion 6 | 2 . 4 Treads 2 | 2 . . Leg . | . . . Wheel 4 | . . 4 Hover . | . . . Flight . | . . . Utility 3 | 2 1 . Device 1 | 1 . . Storage 2 | 1 1 . Processor . | . . . Hackware . | . . . Protection . | . . . Artifact . | . . . Weapon 6 | 2 1 3 Energy Gun 2 | 2 . . Energy Cannon 2 | . 1 1 Ballistic Gun 2 | . . 2 Ballistic Cannon . | . . . Launcher . | . . . Special Weapon . | . . . Impact Weapon . | . . . Slashing Weapon . | . . . Piercing Weapon . | . . . Special Melee Weapon . | . . . Unidentified Prototypes . | . . . Parts Lost 11 | . 1 10 Power 2 | . . 2 Propulsion 4 | . . 4 Utility 1 | . . 1 Weapon 4 | . 1 3 Highest Loss Streak 4 | . 1 4 To Critical Strikes 1 | . . 1 Average Backups 5 | 1 2 6 Power . | . 1 . Propulsion 1 | . 1 1 Utility 1 | . . 2 Weapon 1 | . . 1 Tool/Special . | . . . Unused Backups 5 | . . 5 Power 1 | . . 1 Propulsion 1 | . . 1 Utility 3 | . . 3 Weapon . | . . . Tool/Special . | . . . Average Slot Usage (%) 90 | . 98 87 Engine 13 | . 14 13 Treads 7 | . 28 1 Wheel 16 | . . 21 Device 12 | . 14 11 Storage 14 | . 14 14 Energy Gun 6 | . 19 3 Energy Cannon 12 | . 7 14 Ballistic Gun 5 | . . 7 Peak Build Rating 12 | 7 7 12 Average Rating 8 | 5 6 9 On Entrance 4 | . 7 7 Avg Prop Armor Cover (%) . | . . . Naked Turns . | . . . Heaviest Build 33 | 13 29 33 Greatest Support 40 | 40 40 40 Greatest Overweight (x) 9 | . . 9 Average Overweight (x) . | . . . Largest Inventory Capacity 15 | 8 15 15 Average Capacity 14 | 7 13 15 Most Carried 10 | 5 4 10 Average Carried 6 | 2 2 7 Final Capacity 15 | 8 15 15 Final Carried 7 | 2 3 7 Class Distribution -------------------- 64% | Mutant 35% | Scavenger-Mutant Dominant Class ---------------- Mutant | -10/Materials Mutant | -10/Subcaves Resources | -11 -10 -10 ----------- Run | Yrd Mat Sub Matter Collected 376 | 116 181 79 Remotely . | . . . Salvage Created 626 | 93 277 256 Parts 39 | 6 15 18 Haulers Intercepted . | . . . Recyclers Shooed 1 | 1 . . Parts Field Recycled . | . . . Retrieved Matter . | . . . Parts Self-Destructed 18 | . . 18 Prevented . | . . . Parts Restored . | . . . Kills | -11 -10 -10 ------- Run | Yrd Mat Sub Combat Hostiles Destroyed 13 | . 6 7 Guns 7 | . 2 5 Cannons 6 | . 4 2 Classes Destroyed 7 | 2 2 3 Tunneler 1 | 1 . . Recycler 1 | 1 . . Watcher 1 | . 1 . Swarmer 2 | . . 2 Grunt 6 | . 6 . Sentry 1 | . . 1 Subdweller 4 | . . 4 Best Kill Streak 4 | 2 4 2 Combat Bots Only 3 | . 3 2 Max Kills in Single Turn 1 | 1 1 1 Gunslinging . | . . . Exploded . | . . . Melee . | . . . Uniques/NPCs Destroyed . | . . . Combat | -11 -10 -10 -------- Run | Yrd Mat Sub Hostile Shots Fired 120 | . 42 78 Missed 30 | . 12 18 Hits 90 | . 30 60 Projectile 90 | . 30 60 Critical Strikes 2 | . . 2 Damage Taken 1277 | . 343 934 Core 267 | . 53 214 Absorbed by Shields . | . . . Core Remaining (%) 100 | 100 . . Volleys Fired 83 | 4 20 59 Largest 2 | 2 2 2 Hottest 110 | 90 110 110 Shots Fired 138 | 8 40 90 Gun 65 | 8 28 29 Cannon 73 | . 12 61 Launcher . | . . . Special . | . . . Kinetic 18 | . . 18 Thermal 108 | 4 32 72 Explosive . | . . . Electromagnetic 12 | 4 8 . Robot Hit Streak 11 | 3 5 11 Robot Miss Streak 5 | 1 2 5 Penetration Max . | . . . Secondary Targets . | . . . Shots Hit Robots 68 | 5 25 38 Core Hits 25 | 3 10 12 Critical Kills . | . . . Critical Parts Destroyed . | . . . Critical Strikes 1 | 1 . . Burn 1 | 1 . . Melee Attacks . | . . . Impact . | . . . Slashing . | . . . Piercing . | . . . Sneak Attacks . | . . . Combat Hostiles . | . . . Follow-up Attacks . | . . . Damage Inflicted 1100 | 76 364 660 Guns 574 | 76 205 293 Cannons 526 | . 159 367 Explosions . | . . . Melee . | . . . Ramming . | . . . Kinetic 191 | . . 191 Thermal 828 | 50 309 469 Explosive . | . . . Electromagnetic 81 | 26 55 . Impact . | . . . Slashing . | . . . Piercing . | . . . Highest Corruption 1 | . 1 1 Average Corruption 1 | . 1 1 Corruption Purged . | . . . Corruption Blocked . | . . . Effects 9 | . 2 7 Matter Fused 4 | . 2 2 Heat Flow Errors 2 | . . 2 Energy Discharges 1 | . . 1 Misfires 2 | . . 2 Overload Shots . | . . . Overflow Damage . | . . . Projectiles . | . . . Explosions . | . . . Melee . | . . . Knockbacks . | . . . Impact . | . . . Kinetic . | . . . Secondary . | . . . Self-Inflicted Damage . | . . . Shots . | . . . Rammed . | . . . Targets Rammed . | . . . Kicked . | . . . Crushed . | . . . Highest Temperature 372 | 60 372 128 Average Temperature 100 | 30 124 27 Received Heat Transfer 348 | . 186 162 Siege Activations . | . . . Martial Activations . | . . . Shielding Activations . | . . . Robots Disrupted . | . . . Combat Hostiles . | . . . Robots Corrupted . | . . . Combat Hostiles . | . . . Parts Fried . | . . . Impact Corruptions . | . . . Robots Melted . | . . . Combat Hostiles . | . . . Parts Melted 4 | . 3 1 Heat Transferred 2072 | 222 777 1073 Parts Sabotaged . | . . . Parts Stolen . | . . . Parts Stripped . | . . . Power Chain Reactions . | . . . Alert | -11 -10 -10 ------- Run | Yrd Mat Sub Maximum Alert Level . | . . . Low Security (%) 100 | 100 100 . Level 1 . | . . . Level 2 . | . . . Level 3 . | . . . Level 4 . | . . . Level 5 . | . . . High Security . | . . . Max Security . | . . . Peak Influence 115 | 10 115 . Initial . | . . . Average 24 | 1 33 . Influence Increases 412 | 10 192 210 Destroy 0b10 Robot/C 180 | . 120 60 Destroy 0b10 Robot/NC 15 | 10 5 . Destroy Leader 22 | . 22 . Lose Combat Pursuer 195 | . 45 150 Influence Decreases 288 | 10 100 178 Entered New Map 45 | . . 45 Time Decay 203 | 10 90 103 Lost Part 40 | . 10 30 Squads Dispatched 2 | . 2 . Investigation 2 | . 2 . Extermination . | . . . Reinforcement . | . . . Assault . | . . . Garrison . | . . . Intercept . | . . . Searches Triggered . | . . . Construction Impeded . | . . . Haulers Reinforced . | . . . Active Scanning Responses . | . . . Cargo Convoy Interrupts . | . . . Stealth | -11 -10 -10 --------- Run | Yrd Mat Sub Distress Signals . | . . . Communications Jammed . | . . . Distress Signals . | . . . Times Spotted 21 | . 8 13 Peak Tracking Total 7 | . 3 7 Tactical Retreats 3 | . 1 2 Traps | -11 -10 -10 ------- Run | Yrd Mat Sub Traps Triggered 3 | . 3 . Indirectly . | . . . Trap Hack Attempts . | . . . Triggered . | . . . Disarmed . | . . . Reprogrammed . | . . . Reused . | . . . Traps Extracted . | . . . Installed . | . . . Triggered . | . . . Machines | -11 -10 -10 ---------- Run | Yrd Mat Sub Machines Disabled . | . . . Max in Single Turn . | . . . Machines Repaired . | . . . Machines Dismantled . | . . . Machines Sabotaged . | . . . Overloaded Fab Kills . | . . . Hacking | -11 -10 -10 --------- Run | Yrd Mat Sub Machines Accessed . | . . . Terminals . | . . . Fabricators . | . . . Repair Stations . | . . . Recycling Units . | . . . Scanalyzers . | . . . Garrison Access . | . . . Total Hacks . | . . . Successful . | . . . Failed . | . . . Catastrophic . | . . . Database Lockouts . | . . . Manual . | . . . Terminals . | . . . Fabricators . | . . . Repair Stations . | . . . Recycling Units . | . . . Scanalyzers . | . . . Garrison Access . | . . . Terminal Hacks . | . . . Fabricator Hacks . | . . . Repair Station Hacks . | . . . Recycling Unit Hacks . | . . . Scanalyzer . | . . . Garrison Access Hacks . | . . . Unauthorized Hacks . | . . . Terminals . | . . . Fabricators . | . . . Repair Stations . | . . . Recycling Units . | . . . Scanalyzers . | . . . Garrison Access . | . . . Data Cores Recovered . | . . . Used . | . . . Hacking Detections . | . . . Full Trace Events . | . . . Feedback Events . | . . . Feedback Blocked . | . . . Robot Schematics Acquired . | . . . Robots Built . | . . . Authchips . | . . . Time . | . . . Total Robot Build Rating . | . . . Part Schematics Acquired . | . . . Parts Built . | . . . Authchips . | . . . Time . | . . . Total Part Build Rating . | . . . Part Studies Acquired . | . . . Parts Repaired . | . . . Time . | . . . Parts Recycled . | . . . Recycled Matter . | . . . Retrieved Matter . | . . . Retrieved Components . | . . . Parts Scanalyzed . | . . . Part Schematics Acquired . | . . . Parts Damaged . | . . . Bothacking | -11 -10 -10 ------------ Run | Yrd Mat Sub Used RIF Installer . | . . . Robots Hacked . | . . . Non-combat . | . . . Combat . | . . . Robot Hacks Applied . | . . . Relay Couplers Released . | . . . Fabnet Peak Effective % . | . . . Robots Rewired . | . . . Allies Hacked . | . . . Hacks Repelled . | . . . Allies | -11 -10 -10 -------- Run | Yrd Mat Sub Total Allies . | . . . Largest Group . | . . . Highest-Rated Group . | . . . Highest-Rated Ally . | . . . Total Orders . | . . . Ally Attacks . | . . . Total Damage . | . . . Kills . | . . . Allies Corrupted . | . . . Allies Melted . | . . . Intel | -11 -10 -10 ------- Run | Yrd Mat Sub Active Infowar (turns) 969 | 11 242 716 Seismic 969 | 11 242 716 Robot Analysis Total . | . . . Derelict Logs Recovered . | . . . Drone Launches . | . . . Drone Recoveries . | . . . Exploration | -11 -10 -10 ------------- Run | Yrd Mat Sub Turns Passed 1200 | 92 242 866 Spaces Moved 686 | 54 110 522 Core 44 | 19 . 25 Treads 153 | 35 110 8 Legs . | . . . Wheels 489 | . . 489 Hover . | . . . Flight . | . . . Fastest Speed 50 | 50 160 110 Average Speed 133 | 121 160 129 Slowest Speed 500 | 160 160 500 Overloaded Moves . | . . . Propulsion Burnouts . | . . . Robots Hopped . | . . . Potential Cave-ins . | . . . Cave-ins Triggered . | . . . Exploration Rate (%) 17 | 3 23 26 Regions Visited 2 Branch Regions 1 Pre-discovered Areas . | . . . Known Exits Taken . | . . . Unknown Exits Taken 2 | 1 1 . Scrap Searched . | . . . Spaces Dug . | . . . Terrain Destroyed . | . . . Melee . | . . . Projectile . | . . . AOE . | . . . Terrain Rammed . | . . . Walls Destroyed . | . . . Machines Disabled . | . . . Actions | -11 -10 -10 --------- Run | Yrd Mat Sub Total 831 | 72 136 623 Wait 22 | . 1 21 Move 684 | 53 109 522 Hop . | . . . Pick Up 22 | 8 3 11 Fast Attach 1 | 1 . . Attach 16 | 6 1 9 Detach . | . . . Swap 1 | . 1 . Drop 2 | . 1 1 Fire 83 | 4 20 59 Melee . | . . . Ram . | . . . Kick . | . . . Crush . | . . . Escape Stasis . | . . . Rewire . | . . . Trap . | . . . Miscellaneous . | . . . Route ------- -11/Scrapyard -10/Materials (discovered 2 exits: [*Mat] / [*Sub]) -10/Subcaves (discovered 1 exit: [*Mat]) History --------- Turn | Location | Event 17 | -11/Scrapyard | Discovered new exit (range 16) 93 | -11/Scrapyard | Entered Materials 181 | -10/Materials | Discovered new exit (range 14) 308 | -10/Materials | Build established: Mutant 320 | -10/Materials | Discovered new exit (range 10) 335 | -10/Materials | Entered Subcaves 336 | -10/Subcaves | Approached by a straggling Scientist 506 | -10/Subcaves | Ambushed by angry Subdweller bent on revenge 642 | -10/Subcaves | Discovered new exit (range 11) 670 | -10/Subcaves | Core integrity fell below 50% 999 | -10/Subcaves | Build established: Scavenger-Mutant 1050 | -10/Subcaves | A swath of the cavern ceiling suddenly collapsed 1071 | -10/Subcaves | Core integrity fell below 20% 1091 | -10/Subcaves | Lost 4 parts (1n1u2w) 1201 | -10/Subcaves | Destroyed by 7S-CLJ(R) with Subdweller Machine Gun Last Messages --------------- System corrupted: Beam Cannon misfires. Subatomizers dissect the Ion Engine. Acquired Ion Engine. Subatomizers dissect the Sub. Optics. Y-45 Defender crushed by falling debris. A swath of the cavern ceiling suddenly collapses. Seismic Detector destroyed. Beam Cannon destroyed. Sub. Monowheel destroyed. System corrupted: Matter fused (-8). Sub. Machine Gun destroyed. S-10 Pest destroyed. Acquired 8 matter. Acquired 12 matter. Flight Unit fries itself beyond repair. Lgt. Assault Rifle fries itself beyond repair. Sub. Machine Gun shoots sparks and powers down. Dropped Broken Sub. Machine Gun. Subatomizers dissect the Prototype Leg. Map ----- +----------------------------------------------------+ | ????????????????????????? ??????????????????#? | | ????????????????????????? ???????????????? # | | ????????????????????????? ??????????????? ? | | ???????????????? ????????# ????????###???" ##? | | ????????????????? ?????## ???????## ####" "## | | ???????????????? ? ??### ##?????# ## " ? | | ????????????????? # ## # #?????# ???? | | ????????????????? ####### ####### | | ?????????????????? ## | | ???????????????????????# # | | ????????????????????????# # | | ?????????????????###????## | | ?????????????????# ###### ### | | ?????????????????# ## ##?# ## | | ?????????????????# ####??# ### | | ????????????????## ##?????###?## | | ????????????????# ## # ##???????????## | | ????????????????# ##### #????????????## # | | ????????????????## ### ##?????????????## # | | ????????????????## ## #???????????????### # | | ???????????????## ##????????????????# | | ???????????????# ##### ##?????#????????? | | ???????????????# ###### ### #?????????# | | ???????????????## ## #?????????### | | ???????????????# #???????????? | | ???????????????#### #@ R ????????? | | ??????????????????## ####### = [% ????????? | | ??????????????????# #????????? ??????????? | | ??????????????????# ;##???????????????????????? | | ?????????????????###;##???????????????????????? | | ???????????????###"#""#???????????????????????? | | ???????????????#""#""#"#??????????????????????? | | ???????????????###" ####??????????????????????? | | ?????????????????## #?????????????????????????? | | ?????????????????#"[#?????????????????????????? | | ?????????????????####?????????????????????????? | | ?????????????????# ?????????????????????????? | | ?????????????????# ?????????????????????????? | | ?????????????????# ?????????????????????????? | | ?????????????????? ?????????????????????????? | | ??????????????????????????????????????????????? | | ??????????????????????????????????????????????? | | ??????????????????????????????????????????????? | | ??????????????????????????????????????????????? | | ??????????????????????????????????????????????? | | ??????????????????????????????????????????????? | | ??????????????????????????????????????????????? | | ??????????????????????????????????????????????? | | ??????????????????????????????????????????????? | | ??????????????????????????????????????????????? | +----------------------------------------------------+ Best States ------------- Heat Dissipation 25 Energy Generation 15 Energy Capacity 200 Matter Stores 300 Matter Capacity 300 Sight Range 16 Terrain Scan Density 10 Evasion (%) 50 Recoil Reduction 2 Item Schematics ----------------- None Robot Schematics ------------------ None Fabricated ------------ Nothing Repaired ---------- Nothing Studied --------- None Alien Tech Used ----------------- None Achievements -------------- None Challenges ------------ None Game ------ Seed FortressMicrowarpAnalyzer Manual? 0 Play Time 00:09:04 Cumulative 35.7 hours Start 2026.02.22 @ 00:04:10 End 2026.02.22 @ 00:11:49 Sessions 1 Manual Loads 0 Difficulty Rogue Special Mode None Game No. 85 Rogue 85 Adventurer 0 Explorer 0 Win Type - Total 0 Types 0/0/0/0/0/0/0/0/0/0 Lore% 24 Gallery% 33 Achievement% 24 Wizard Run 0 Options --------- Layout 1 ASCII 0 Keyboard 0 Movement Mouse Keybinds 0 Fullscreen 1 Font 24/Smallcaps Map View 50x35 Zoom Use 0% Tactical HUD 0 Map Filters NONE Filters NONE Steam 1 RUN: 3ca39f67-da2c-43ac-84ba-8f83205048cd